[Event "Titled Tuesday Blitz January 18 2022"]
[White "Artemenko, Oleg"]
[Black "Kovalev, Vladislav"]
[WhiteFideId "14201798"]
[BlackFideId "13504398"]
[WhiteElo "2287"]
[BlackElo "2530"]
[Result "1/2-1/2"]
[Round "03"]
[TimeControl "180+1"]
[Date "2022.01.18"]
[WhiteClock "0:00:19"]
[BlackClock "0:00:51"]

1. d4 {[%clk 0:03:00]}  Nf6 {[%clk 0:02:51]} 2. Nc3 {[%clk 0:03:01]}  d5 {[%clk 0:02:51]} 3. Bf4 {[%clk 0:03:01]}  a6 {[%clk 0:02:52]} 4. e3 {[%clk 0:03:00]}  b5 {[%clk 0:02:52]} 5. Nf3 {[%clk 0:02:59]}  Bb7 {[%clk 0:02:53]} 6. Ne5 {[%clk 0:02:59]}  e6 {[%clk 0:02:53]} 7. Ne2 {[%clk 0:02:58]}  c5 {[%clk 0:02:54]} 8. c3 {[%clk 0:02:59]}  Nbd7 {[%clk 0:02:53]} 9. Ng3 {[%clk 0:02:59]}  Nxe5 {[%clk 0:02:48]} 10. Bxe5 {[%clk 0:02:59]}  Nd7 {[%clk 0:02:49]} 11. Bd3 {[%clk 0:02:47]}  f6 {[%clk 0:02:20]} 12. Bf4 {[%clk 0:02:45]}  g5 {[%clk 0:02:16]} 13. Qh5+ {[%clk 0:02:45]}  Ke7 {[%clk 0:02:17]} 14. Bxg5 {[%clk 0:02:37]}  fxg5 {[%clk 0:02:18]} 15. Qxg5+ {[%clk 0:02:38]}  Kd6 {[%clk 0:02:18]} 16. Qf4+ {[%clk 0:02:35]}  Kc6 {[%clk 0:02:19]} 17. e4 {[%clk 0:02:26]}  Qf6 {[%clk 0:02:08]} 18. exd5+ {[%clk 0:02:08]}  exd5 {[%clk 0:02:08]} 19. Nf5 {[%clk 0:02:01]}  Bd6 {[%clk 0:02:04]} 20. Qxd6+ {[%clk 0:01:55]}  Qxd6 {[%clk 0:02:04]} 21. Nxd6 {[%clk 0:01:56]}  Kxd6 {[%clk 0:02:05]} 22. Kd2 {[%clk 0:01:55]}  cxd4 {[%clk 0:02:03]} 23. cxd4 {[%clk 0:01:55]}  h5 {[%clk 0:02:01]} 24. Rae1 {[%clk 0:01:52]}  Rhg8 {[%clk 0:02:00]} 25. g3 {[%clk 0:01:52]}  Raf8 {[%clk 0:02:00]} 26. f4 {[%clk 0:01:51]}  Nf6 {[%clk 0:02:00]} 27. Re5 {[%clk 0:01:51]}  h4 {[%clk 0:01:56]} 28. Rhe1 {[%clk 0:01:44]}  hxg3 {[%clk 0:01:51]} 29. Re6+ {[%clk 0:01:43]}  Kc7 {[%clk 0:01:51]} 30. hxg3 {[%clk 0:01:39]}  Rxg3 {[%clk 0:01:51]} 31. Re7+ {[%clk 0:01:38]}  Kb8 {[%clk 0:01:49]} 32. R1e6 {[%clk 0:01:37]}  Bc8 {[%clk 0:01:32]} 33. Rb6+ {[%clk 0:01:35]}  Ka8 {[%clk 0:01:33]} 34. a4 {[%clk 0:01:32]}  Ne4+ {[%clk 0:01:28]} 35. Bxe4 {[%clk 0:01:27]}  dxe4 {[%clk 0:01:29]} 36. axb5 {[%clk 0:01:26]}  Rxf4 {[%clk 0:01:20]} 37. Rc6 {[%clk 0:01:19]}  Bb7 {[%clk 0:01:03]} 38. Re8+ {[%clk 0:01:18]}  Bc8 {[%clk 0:01:01]} 39. Rexc8+ {[%clk 0:01:12]}  Kb7 {[%clk 0:01:02]} 40. bxa6+ {[%clk 0:01:11]}  Ka7 {[%clk 0:01:01]} 41. R8c7+ {[%clk 0:01:11]}  Ka8 {[%clk 0:01:02]} 42. Re7 {[%clk 0:00:56]}  Rf2+ {[%clk 0:01:00]} 43. Ke1 {[%clk 0:00:56]}  Rxb2 {[%clk 0:00:57]} 44. Rc8+ {[%clk 0:00:28]}  Rb8 {[%clk 0:00:55]} 45. Rxb8+ {[%clk 0:00:29]}  Kxb8 {[%clk 0:00:56]} 46. Rxe4 {[%clk 0:00:30]}  Rg6 {[%clk 0:00:48]} 47. Ke2 {[%clk 0:00:28]}  Rxa6 {[%clk 0:00:47]} 48. Re7 {[%clk 0:00:29]}  Kc8 {[%clk 0:00:48]} 49. Ke3 {[%clk 0:00:29]}  Kd8 {[%clk 0:00:47]} 50. Rh7 {[%clk 0:00:29]}  Rg6 {[%clk 0:00:46]} 51. Ke4 {[%clk 0:00:29]}  Ra6 {[%clk 0:00:47]} 52. Kd5 {[%clk 0:00:29]}  Rg6 {[%clk 0:00:47]} 53. Kc5 {[%clk 0:00:28]}  Rg5+ {[%clk 0:00:47]} 54. d5 {[%clk 0:00:28]}  Rg6 {[%clk 0:00:48]} 55. Ra7 {[%clk 0:00:28]}  Rf6 {[%clk 0:00:48]} 56. Rg7 {[%clk 0:00:27]}  Rh6 {[%clk 0:00:48]} 57. Rg4 {[%clk 0:00:25]}  Rf6 {[%clk 0:00:48]} 58. Kd4 {[%clk 0:00:24]}  Ra6 {[%clk 0:00:48]} 59. Ke5 {[%clk 0:00:23]}  Rb6 {[%clk 0:00:48]} 60. Rg7 {[%clk 0:00:20]}  Rh6 {[%clk 0:00:48]} 61. Ra7 {[%clk 0:00:20]}  Rg6 {[%clk 0:00:48]} 62. d6 {[%clk 0:00:18]}  Rg1 {[%clk 0:00:48]} 63. Kd5 {[%clk 0:00:19]}  Rd1+ {[%clk 0:00:48]} 64. Ke5 {[%clk 0:00:19]}  Re1+ {[%clk 0:00:49]} 65. Kd5 {[%clk 0:00:19]}  Rd1+ {[%clk 0:00:49]} 66. Ke5 {[%clk 0:00:20]}  Re1+ {[%clk 0:00:50]} 67. Kd5 {[%clk 0:00:19]}  Rd1+ {[%clk 0:00:51]} 1/2-1/2


[Site "https://www.chess.com"]

[Event "Titled Tuesday Blitz January 18 2022"]
[White "Azadaliyev, Jahandar"]
[Black "Bettalli, Francesco"]
[WhiteFideId "13425811"]
[BlackFideId "2816453"]
[WhiteElo "1795"]
[BlackElo "2216"]
[Result "1-0"]
[Round "03"]
[TimeControl "180+1"]
[Date "2022.01.18"]
[WhiteClock "0:01:40"]
[BlackClock "0:00:01"]

1. d4 {[%clk 0:03:00]}  Nf6 {[%clk 0:02:59]} 2. c4 {[%clk 0:03:01]}  c5 {[%clk 0:02:59]} 3. d5 {[%clk 0:03:01]}  b5 {[%clk 0:02:58]} 4. a4 {[%clk 0:03:01]}  b4 {[%clk 0:02:56]} 5. Nf3 {[%clk 0:03:01]}  d6 {[%clk 0:02:56]} 6. Nbd2 {[%clk 0:03:02]}  g6 {[%clk 0:02:57]} 7. g3 {[%clk 0:03:02]}  Bg7 {[%clk 0:02:57]} 8. Bg2 {[%clk 0:03:02]}  O-O {[%clk 0:02:58]} 9. O-O {[%clk 0:03:03]}  a5 {[%clk 0:02:57]} 10. e4 {[%clk 0:03:03]}  Nbd7 {[%clk 0:02:56]} 11. Re1 {[%clk 0:03:01]}  Re8 {[%clk 0:02:54]} 12. e5 {[%clk 0:03:01]}  dxe5 {[%clk 0:02:54]} 13. Nxe5 {[%clk 0:03:02]}  Nxe5 {[%clk 0:02:54]} 14. Rxe5 {[%clk 0:03:03]}  Nd7 {[%clk 0:02:52]} 15. Re1 {[%clk 0:03:02]}  Bb7 {[%clk 0:02:50]} 16. Nb3 {[%clk 0:02:58]}  Qb6 {[%clk 0:02:43]} 17. Qg4 {[%clk 0:02:52]}  f5 {[%clk 0:02:43]} 18. Qd1 {[%clk 0:02:49]}  Ne5 {[%clk 0:02:39]} 19. Qc2 {[%clk 0:02:48]}  e6 {[%clk 0:02:36]} 20. Bf4 {[%clk 0:02:47]}  exd5 {[%clk 0:02:31]} 21. cxd5 {[%clk 0:02:46]}  Rac8 {[%clk 0:02:16]} 22. Nd2 {[%clk 0:02:43]}  c4 {[%clk 0:01:59]} 23. Bxe5 {[%clk 0:02:36]}  Bxe5 {[%clk 0:01:58]} 24. Nxc4 {[%clk 0:02:36]}  Qd4 {[%clk 0:01:45]} 25. Rac1 {[%clk 0:02:34]}  Bxd5 {[%clk 0:01:31]} 26. Red1 {[%clk 0:02:13]}  Bxc4 {[%clk 0:01:06]} 27. Rxd4 {[%clk 0:02:08]}  Bxd4 {[%clk 0:01:07]} 28. Qd2 {[%clk 0:02:06]}  Bf6 {[%clk 0:00:20]} 29. Rxc4 {[%clk 0:02:02]}  Rcd8 {[%clk 0:00:18]} 30. Bd5+ {[%clk 0:01:55]}  Kh8 {[%clk 0:00:15]} 31. Rc7 {[%clk 0:01:55]}  Bg7 {[%clk 0:00:08]} 32. Qd3 {[%clk 0:01:51]}  Re5 {[%clk 0:00:07]} 33. Rc5 {[%clk 0:01:50]}  Bf8 {[%clk 0:00:03]} 34. Qd4 {[%clk 0:01:47]}  Bg7 {[%clk 0:00:03]} 35. Qc4 {[%clk 0:01:45]}  f4 {[%clk 0:00:02]} 36. gxf4 {[%clk 0:01:42]}  Rf5 {[%clk 0:00:01]} 37. Be6 {[%clk 0:01:40]} 1-0


[Site "https://www.chess.com"]

[Event "Titled Tuesday Blitz January 18 2022"]
[White "Bacrot, Etienne"]
[Black "Guliev, Logman"]
[WhiteFideId "605506"]
[BlackFideId "13400061"]
[WhiteElo "2673"]
[BlackElo "2128"]
[Result "1-0"]
[Round "03"]
[TimeControl "180+1"]
[Date "2022.01.18"]
[WhiteClock "0:00:44"]
[BlackClock "0:00:45"]

1. d4 {[%clk 0:03:00]}  Nf6 {[%clk 0:02:58]} 2. Bg5 {[%clk 0:02:59]}  e6 {[%clk 0:02:57]} 3. e4 {[%clk 0:02:58]}  h6 {[%clk 0:02:57]} 4. Bxf6 {[%clk 0:02:58]}  Qxf6 {[%clk 0:02:58]} 5. Nf3 {[%clk 0:02:58]}  Qd8 {[%clk 0:02:58]} 6. Bb5 {[%clk 0:02:55]}  c5 {[%clk 0:02:51]} 7. d5 {[%clk 0:02:49]}  a6 {[%clk 0:02:36]} 8. Be2 {[%clk 0:02:48]}  d6 {[%clk 0:02:35]} 9. O-O {[%clk 0:02:44]}  e5 {[%clk 0:02:35]} 10. a4 {[%clk 0:02:43]}  Be7 {[%clk 0:02:35]} 11. a5 {[%clk 0:02:42]}  O-O {[%clk 0:02:35]} 12. Nfd2 {[%clk 0:02:41]}  f5 {[%clk 0:02:35]} 13. exf5 {[%clk 0:02:41]}  Bxf5 {[%clk 0:02:34]} 14. Nc4 {[%clk 0:02:40]}  Nd7 {[%clk 0:02:33]} 15. Nc3 {[%clk 0:02:40]}  Qe8 {[%clk 0:02:28]} 16. Bd3 {[%clk 0:02:37]}  Qg6 {[%clk 0:02:26]} 17. Bxf5 {[%clk 0:02:32]}  Rxf5 {[%clk 0:02:24]} 18. Qd3 {[%clk 0:02:30]}  Raf8 {[%clk 0:02:02]} 19. Rae1 {[%clk 0:02:25]}  Nf6 {[%clk 0:01:52]} 20. Re3 {[%clk 0:01:45]}  Ng4 {[%clk 0:01:41]} 21. Rf3 {[%clk 0:01:14]}  Qh5 {[%clk 0:01:32]} 22. Rh3 {[%clk 0:01:14]}  Qg5 {[%clk 0:01:07]} 23. Ne4 {[%clk 0:01:12]}  Qg6 {[%clk 0:01:01]} 24. Rg3 {[%clk 0:00:51]}  Rf4 {[%clk 0:01:01]} 25. f3 {[%clk 0:00:48]}  Qh5 {[%clk 0:00:45]} 26. Rxg4 {[%clk 0:00:44]} 1-0


[Site "https://www.chess.com"]

[Event "Titled Tuesday Blitz January 18 2022"]
[White "Balabayeva, Xeniya"]
[Black "Shkapenko, Pavel"]
[WhiteFideId "13719688"]
[BlackFideId "4151933"]
[WhiteElo "1940"]
[BlackElo "2386"]
[Result "0-1"]
[Round "03"]
[TimeControl "180+1"]
[Date "2022.01.18"]
[WhiteClock "0:00:04"]
[BlackClock "0:01:41"]

1. e4 {[%clk 0:03:00]}  e5 {[%clk 0:02:59]} 2. Nf3 {[%clk 0:02:59]}  Nc6 {[%clk 0:02:59]} 3. Bb5 {[%clk 0:02:58]}  Bc5 {[%clk 0:02:59]} 4. O-O {[%clk 0:02:55]}  d6 {[%clk 0:02:59]} 5. c3 {[%clk 0:02:54]}  Bd7 {[%clk 0:02:59]} 6. d4 {[%clk 0:02:52]}  Bb6 {[%clk 0:02:59]} 7. a4 {[%clk 0:02:37]}  a6 {[%clk 0:02:59]} 8. Bc4 {[%clk 0:02:30]}  Nf6 {[%clk 0:02:57]} 9. Re1 {[%clk 0:02:23]}  Bg4 {[%clk 0:02:57]} 10. d5 {[%clk 0:02:10]}  Ne7 {[%clk 0:02:54]} 11. Be3 {[%clk 0:02:03]}  Bxe3 {[%clk 0:02:52]} 12. Rxe3 {[%clk 0:02:02]}  Ng6 {[%clk 0:02:52]} 13. Nbd2 {[%clk 0:01:50]}  Nf4 {[%clk 0:02:40]} 14. h3 {[%clk 0:01:40]}  Bd7 {[%clk 0:02:33]} 15. Nf1 {[%clk 0:01:23]}  N6h5 {[%clk 0:02:19]} 16. Ng3 {[%clk 0:01:11]}  Qe7 {[%clk 0:02:08]} 17. b4 {[%clk 0:00:44]}  O-O {[%clk 0:02:05]} 18. a5 {[%clk 0:00:31]}  g6 {[%clk 0:01:48]} 19. Nh2 {[%clk 0:00:18]}  Nxg2 {[%clk 0:01:41]} 20. Kxg2 {[%clk 0:00:05]}  Nf4+ {[%clk 0:01:42]} 21. Kg1 {[%clk 0:00:05]}  Nxh3+ {[%clk 0:01:42]} 22. Kf1 {[%clk 0:00:04]}  f5 {[%clk 0:01:41]} 0-1


[Site "https://www.chess.com"]

[Event "Titled Tuesday Blitz January 18 2022"]
[White "Bortnyk, Olexandr"]
[Black "Girya, Olga"]
[WhiteFideId "14120828"]
[BlackFideId "4195752"]
[WhiteElo "2723"]
[BlackElo "2275"]
[Result "1-0"]
[Round "03"]
[TimeControl "180+1"]
[Date "2022.01.18"]
[WhiteClock "0:00:37"]
[BlackClock "0:00:01"]

1. e4 {[%clk 0:03:00]}  e5 {[%clk 0:02:57]} 2. Nf3 {[%clk 0:02:56]}  Nc6 {[%clk 0:02:57]} 3. Bc4 {[%clk 0:02:56]}  Bc5 {[%clk 0:02:55]} 4. c3 {[%clk 0:02:55]}  Nf6 {[%clk 0:02:55]} 5. d4 {[%clk 0:02:56]}  exd4 {[%clk 0:02:54]} 6. cxd4 {[%clk 0:02:57]}  Bb4+ {[%clk 0:02:54]} 7. Nbd2 {[%clk 0:02:58]}  Bxd2+ {[%clk 0:02:50]} 8. Bxd2 {[%clk 0:02:56]}  d5 {[%clk 0:02:25]} 9. exd5 {[%clk 0:02:55]}  Nxd5 {[%clk 0:02:23]} 10. O-O {[%clk 0:02:46]}  O-O {[%clk 0:02:16]} 11. h3 {[%clk 0:02:36]}  Nce7 {[%clk 0:02:06]} 12. Bg5 {[%clk 0:02:25]}  c6 {[%clk 0:02:03]} 13. Qb3 {[%clk 0:02:18]}  f6 {[%clk 0:01:45]} 14. Bh4 {[%clk 0:02:15]}  Kh8 {[%clk 0:01:35]} 15. Rfe1 {[%clk 0:02:05]}  Qb6 {[%clk 0:01:35]} 16. Qa3 {[%clk 0:01:57]}  Qd8 {[%clk 0:01:18]} 17. Bd3 {[%clk 0:01:44]}  Bf5 {[%clk 0:01:14]} 18. Bc4 {[%clk 0:01:33]}  Bg6 {[%clk 0:01:08]} 19. Bg3 {[%clk 0:01:31]}  Nf5 {[%clk 0:01:00]} 20. Bh2 {[%clk 0:01:30]}  Qd7 {[%clk 0:00:50]} 21. Re2 {[%clk 0:01:24]}  Rfe8 {[%clk 0:00:48]} 22. Rae1 {[%clk 0:01:24]}  Rxe2 {[%clk 0:00:31]} 23. Rxe2 {[%clk 0:01:25]}  b5 {[%clk 0:00:24]} 24. Bd3 {[%clk 0:01:21]}  Nfe7 {[%clk 0:00:13]} 25. Bxg6 {[%clk 0:01:16]}  Nxg6 {[%clk 0:00:13]} 26. Bg3 {[%clk 0:01:15]}  a5 {[%clk 0:00:12]} 27. Qc5 {[%clk 0:01:15]}  Re8 {[%clk 0:00:11]} 28. Rc2 {[%clk 0:01:14]}  Re6 {[%clk 0:00:10]} 29. a4 {[%clk 0:01:15]}  bxa4 {[%clk 0:00:08]} 30. Qxa5 {[%clk 0:01:14]}  Ngf4 {[%clk 0:00:06]} 31. Bxf4 {[%clk 0:01:06]}  Nxf4 {[%clk 0:00:06]} 32. Qxa4 {[%clk 0:01:07]}  h6 {[%clk 0:00:03]} 33. Qa5 {[%clk 0:00:47]}  Qd5 {[%clk 0:00:02]} 34. Rc5 {[%clk 0:00:37]}  Nxh3+ {[%clk 0:00:01]} 35. Kh2 {[%clk 0:00:37]} 1-0


[Site "https://www.chess.com"]

[Event "Titled Tuesday Blitz January 18 2022"]
[White "Bryakin, Mikhail"]
[Black "Chen, Justin"]
[WhiteFideId "4165314"]
[BlackFideId "2098199"]
[WhiteElo "2421"]
[BlackElo "2505"]
[Result "1-0"]
[Round "03"]
[TimeControl "180+1"]
[Date "2022.01.18"]
[WhiteClock "0:01:36"]
[BlackClock "0:00:01"]

1. e4 {[%clk 0:02:50]}  e6 {[%clk 0:02:59]} 2. Qe2 {[%clk 0:02:44]}  c5 {[%clk 0:02:57]} 3. Nc3 {[%clk 0:02:39]}  Nc6 {[%clk 0:02:57]} 4. g3 {[%clk 0:02:40]}  g6 {[%clk 0:02:57]} 5. Nf3 {[%clk 0:02:40]}  Bg7 {[%clk 0:02:57]} 6. Bg2 {[%clk 0:02:40]}  Nge7 {[%clk 0:02:58]} 7. O-O {[%clk 0:02:41]}  O-O {[%clk 0:02:57]} 8. Rd1 {[%clk 0:02:41]}  Nd4 {[%clk 0:02:55]} 9. Nxd4 {[%clk 0:02:39]}  cxd4 {[%clk 0:02:56]} 10. Nb5 {[%clk 0:02:37]}  e5 {[%clk 0:02:48]} 11. Nd6 {[%clk 0:02:34]}  Qc7 {[%clk 0:02:35]} 12. Nxc8 {[%clk 0:02:31]}  Raxc8 {[%clk 0:02:36]} 13. c3 {[%clk 0:02:26]}  Nc6 {[%clk 0:02:30]} 14. b3 {[%clk 0:02:23]}  Rfe8 {[%clk 0:02:18]} 15. Bb2 {[%clk 0:02:17]}  Qd6 {[%clk 0:02:15]} 16. c4 {[%clk 0:02:14]}  h5 {[%clk 0:01:38]} 17. d3 {[%clk 0:02:05]}  Bh6 {[%clk 0:01:37]} 18. a3 {[%clk 0:02:02]}  a5 {[%clk 0:01:36]} 19. Rf1 {[%clk 0:01:56]}  Re6 {[%clk 0:01:19]} 20. Qd1 {[%clk 0:01:56]}  Rf6 {[%clk 0:01:14]} 21. Bc1 {[%clk 0:01:56]}  Bxc1 {[%clk 0:01:14]} 22. Qxc1 {[%clk 0:01:57]}  Kg7 {[%clk 0:01:01]} 23. f4 {[%clk 0:01:57]}  h4 {[%clk 0:00:58]} 24. f5 {[%clk 0:01:55]}  hxg3 {[%clk 0:00:55]} 25. hxg3 {[%clk 0:01:56]}  Rh8 {[%clk 0:00:55]} 26. Qg5 {[%clk 0:01:52]}  Qe7 {[%clk 0:00:47]} 27. Qg4 {[%clk 0:01:51]}  Rh5 {[%clk 0:00:38]} 28. Bf3 {[%clk 0:01:48]}  Rh8 {[%clk 0:00:33]} 29. Kg2 {[%clk 0:01:48]}  Qf8 {[%clk 0:00:09]} 30. Rh1 {[%clk 0:01:48]}  Ne7 {[%clk 0:00:09]} 31. Rxh8 {[%clk 0:01:45]}  Kxh8 {[%clk 0:00:09]} 32. Rh1+ {[%clk 0:01:46]}  Kg8 {[%clk 0:00:09]} 33. Qh4 {[%clk 0:01:46]}  Qg7 {[%clk 0:00:09]} 34. fxg6 {[%clk 0:01:39]}  Nxg6 {[%clk 0:00:06]} 35. Qg5 {[%clk 0:01:39]}  Kf8 {[%clk 0:00:02]} 36. Bg4 {[%clk 0:01:37]}  Ke8 {[%clk 0:00:02]} 37. Bf5 {[%clk 0:01:36]}  Qf8 {[%clk 0:00:01]} 38. Qxf6 {[%clk 0:01:36]} 1-0


[Site "https://www.chess.com"]

[Event "Titled Tuesday Blitz January 18 2022"]
[White "Claridge-Hansen, William"]
[Black "Visakh N R"]
[WhiteFideId "422509"]
[BlackFideId "25012223"]
[WhiteElo "2261"]
[BlackElo "2454"]
[Result "1/2-1/2"]
[Round "03"]
[TimeControl "180+1"]
[Date "2022.01.18"]
[WhiteClock "0:00:10"]
[BlackClock "0:00:05"]

1. c4 {[%clk 0:03:00]}  c5 {[%clk 0:02:56]} 2. g3 {[%clk 0:03:01]}  Nc6 {[%clk 0:02:53]} 3. Bg2 {[%clk 0:03:01]}  g6 {[%clk 0:02:52]} 4. Nc3 {[%clk 0:03:02]}  Bg7 {[%clk 0:02:52]} 5. Nf3 {[%clk 0:03:02]}  Nf6 {[%clk 0:02:50]} 6. d4 {[%clk 0:03:01]}  cxd4 {[%clk 0:02:48]} 7. Nxd4 {[%clk 0:03:02]}  O-O {[%clk 0:02:48]} 8. O-O {[%clk 0:03:03]}  d6 {[%clk 0:02:48]} 9. Nxc6 {[%clk 0:03:02]}  bxc6 {[%clk 0:02:49]} 10. Bxc6 {[%clk 0:03:02]}  Rb8 {[%clk 0:02:50]} 11. Bg2 {[%clk 0:03:03]}  Qa5 {[%clk 0:02:42]} 12. Qd2 {[%clk 0:02:52]}  Ba6 {[%clk 0:02:26]} 13. b3 {[%clk 0:02:23]}  Nd7 {[%clk 0:02:19]} 14. Bb2 {[%clk 0:02:21]}  Bxc4 {[%clk 0:02:19]} 15. bxc4 {[%clk 0:01:56]}  Rxb2 {[%clk 0:02:17]} 16. Qxb2 {[%clk 0:01:56]}  Bxc3 {[%clk 0:02:17]} 17. Qb7 {[%clk 0:01:48]}  Bxa1 {[%clk 0:01:57]} 18. Qxd7 {[%clk 0:01:46]}  Bf6 {[%clk 0:01:56]} 19. a4 {[%clk 0:01:28]}  Rb8 {[%clk 0:01:53]} 20. h4 {[%clk 0:01:07]}  Kg7 {[%clk 0:01:48]} 21. Bf3 {[%clk 0:01:02]}  h5 {[%clk 0:01:40]} 22. Rd1 {[%clk 0:01:02]}  Rb4 {[%clk 0:01:39]} 23. Rd5 {[%clk 0:00:54]}  Qxa4 {[%clk 0:01:35]} 24. Qxa4 {[%clk 0:00:32]}  Rxa4 {[%clk 0:01:24]} 25. c5 {[%clk 0:00:33]}  dxc5 {[%clk 0:01:16]} 26. Rxc5 {[%clk 0:00:34]}  a5 {[%clk 0:01:15]} 27. Kg2 {[%clk 0:00:33]}  Ra1 {[%clk 0:01:12]} 28. Rc7 {[%clk 0:00:32]}  a4 {[%clk 0:01:12]} 29. Ra7 {[%clk 0:00:33]}  e6 {[%clk 0:01:09]} 30. Bc6 {[%clk 0:00:30]}  Kf8 {[%clk 0:00:58]} 31. Rxa4 {[%clk 0:00:27]}  Rc1 {[%clk 0:00:57]} 32. Ra8+ {[%clk 0:00:25]}  Kg7 {[%clk 0:00:57]} 33. Bf3 {[%clk 0:00:24]}  Rc7 {[%clk 0:00:57]} 34. Rb8 {[%clk 0:00:24]}  Bd4 {[%clk 0:00:56]} 35. Rb7 {[%clk 0:00:23]}  Rc2 {[%clk 0:00:55]} 36. Rd7 {[%clk 0:00:21]}  Bb6 {[%clk 0:00:50]} 37. Rb7 {[%clk 0:00:21]}  Bc7 {[%clk 0:00:50]} 38. Be4 {[%clk 0:00:19]}  Rxe2 {[%clk 0:00:46]} 39. Kf3 {[%clk 0:00:19]}  Rxe4 {[%clk 0:00:43]} 40. Kxe4 {[%clk 0:00:19]}  Bd8 {[%clk 0:00:42]} 41. f3 {[%clk 0:00:20]}  Ba5 {[%clk 0:00:41]} 42. Rb5 {[%clk 0:00:19]}  Be1 {[%clk 0:00:41]} 43. Kf4 {[%clk 0:00:18]}  Kf6 {[%clk 0:00:40]} 44. g4 {[%clk 0:00:15]}  hxg4 {[%clk 0:00:28]} 45. Kxg4 {[%clk 0:00:16]}  Kg7 {[%clk 0:00:26]} 46. h5 {[%clk 0:00:15]}  gxh5+ {[%clk 0:00:25]} 47. Rxh5 {[%clk 0:00:16]}  Kf6 {[%clk 0:00:25]} 48. Rh1 {[%clk 0:00:15]}  Bb4 {[%clk 0:00:24]} 49. Rb1 {[%clk 0:00:16]}  Bd6 {[%clk 0:00:24]} 50. Rb5 {[%clk 0:00:16]}  Bc7 {[%clk 0:00:24]} 51. Rb7 {[%clk 0:00:15]}  Bd6 {[%clk 0:00:24]} 52. f4 {[%clk 0:00:16]}  Bf8 {[%clk 0:00:23]} 53. Kf3 {[%clk 0:00:15]}  Bd6 {[%clk 0:00:23]} 54. Rb5 {[%clk 0:00:16]}  Ke7 {[%clk 0:00:22]} 55. Ke4 {[%clk 0:00:16]}  f5+ {[%clk 0:00:22]} 56. Ke3 {[%clk 0:00:15]}  Kf6 {[%clk 0:00:21]} 57. Kf3 {[%clk 0:00:14]}  Bc7 {[%clk 0:00:21]} 58. Rc5 {[%clk 0:00:14]}  Bd6 {[%clk 0:00:22]} 59. Rc6 {[%clk 0:00:15]}  Ke7 {[%clk 0:00:22]} 60. Ra6 {[%clk 0:00:16]}  Kd7 {[%clk 0:00:21]} 61. Ra4 {[%clk 0:00:16]}  Ke7 {[%clk 0:00:22]} 62. Kg3 {[%clk 0:00:15]}  Kf6 {[%clk 0:00:21]} 63. Kh4 {[%clk 0:00:16]}  Bc5 {[%clk 0:00:20]} 64. Kh5 {[%clk 0:00:14]}  Be3 {[%clk 0:00:20]} 65. Rb4 {[%clk 0:00:12]}  Bf2 {[%clk 0:00:19]} 66. Ra4 {[%clk 0:00:10]}  Be3 {[%clk 0:00:19]} 67. Kh4 {[%clk 0:00:10]}  Bd2 {[%clk 0:00:18]} 68. Kg3 {[%clk 0:00:10]}  Be1+ {[%clk 0:00:18]} 69. Kf3 {[%clk 0:00:11]}  Bd2 {[%clk 0:00:18]} 70. Rc4 {[%clk 0:00:11]}  Ba5 {[%clk 0:00:18]} 71. Rc6 {[%clk 0:00:11]}  Bb4 {[%clk 0:00:16]} 72. Ke3 {[%clk 0:00:11]}  Ba5 {[%clk 0:00:15]} 73. Rc4 {[%clk 0:00:11]}  Bb6+ {[%clk 0:00:15]} 74. Kd3 {[%clk 0:00:10]}  Ba7 {[%clk 0:00:14]} 75. Ra4 {[%clk 0:00:10]}  Bb8 {[%clk 0:00:14]} 76. Ke3 {[%clk 0:00:09]}  Bc7 {[%clk 0:00:14]} 77. Rc4 {[%clk 0:00:06]}  Bd6 {[%clk 0:00:13]} 78. Kd3 {[%clk 0:00:06]}  Bb8 {[%clk 0:00:12]} 79. Kc3 {[%clk 0:00:06]}  Kg6 {[%clk 0:00:11]} 80. Rc6 {[%clk 0:00:05]}  Kf7 {[%clk 0:00:09]} 81. Rc4 {[%clk 0:00:04]}  Kg6 {[%clk 0:00:09]} 82. Kd3 {[%clk 0:00:05]}  Kf6 {[%clk 0:00:07]} 83. Ke3 {[%clk 0:00:05]}  Ba7+ {[%clk 0:00:08]} 84. Kf3 {[%clk 0:00:05]}  Bb8 {[%clk 0:00:09]} 85. Rc8 {[%clk 0:00:05]}  Bd6 {[%clk 0:00:09]} 86. Ra8 {[%clk 0:00:04]}  Bb4 {[%clk 0:00:08]} 87. Ra6 {[%clk 0:00:04]}  Bd2 {[%clk 0:00:08]} 88. Rb6 {[%clk 0:00:04]}  Bc1 {[%clk 0:00:08]} 89. Rb3 {[%clk 0:00:05]}  Bd2 {[%clk 0:00:08]} 90. Ra3 {[%clk 0:00:05]}  Bb4 {[%clk 0:00:07]} 91. Ra8 {[%clk 0:00:06]}  Bd6 {[%clk 0:00:08]} 92. Ra6 {[%clk 0:00:06]}  Bc7 {[%clk 0:00:08]} 93. Kg3 {[%clk 0:00:06]}  Bb8 {[%clk 0:00:07]} 94. Rc6 {[%clk 0:00:06]}  Ba7 {[%clk 0:00:07]} 95. Rc4 {[%clk 0:00:06]}  Bb8 {[%clk 0:00:06]} 96. Kh4 {[%clk 0:00:06]}  Bd6 {[%clk 0:00:06]} 97. Kh5 {[%clk 0:00:07]}  Bf8 {[%clk 0:00:06]} 98. Rc8 {[%clk 0:00:06]}  Bd6 {[%clk 0:00:06]} 99. Rc4 {[%clk 0:00:06]}  Bf8 {[%clk 0:00:06]} 100. Kh4 {[%clk 0:00:05]}  Ba3 {[%clk 0:00:05]} 101. Kg3 {[%clk 0:00:06]}  Bc1 {[%clk 0:00:05]} 102. Ra4 {[%clk 0:00:07]}  Bd2 {[%clk 0:00:05]} 103. Kf3 {[%clk 0:00:08]}  Bc3 {[%clk 0:00:05]} 104. Ra6 {[%clk 0:00:09]}  Bd4 {[%clk 0:00:05]} 105. Ra8 {[%clk 0:00:10]}  Bc5 {[%clk 0:00:05]} 1/2-1/2


[Site "https://www.chess.com"]

[Event "Titled Tuesday Blitz January 18 2022"]
[White "Costachi, Mihnea"]
[Black "Swicarz, Maciej"]
[WhiteFideId "1217518"]
[BlackFideId "1113585"]
[WhiteElo "2464"]
[BlackElo "2063"]
[Result "1-0"]
[Round "03"]
[TimeControl "180+1"]
[Date "2022.01.18"]
[WhiteClock "0:01:50"]
[BlackClock "0:01:00"]

1. e4 {[%clk 0:03:00]}  c5 {[%clk 0:02:59]} 2. Nf3 {[%clk 0:03:00]}  d6 {[%clk 0:02:59]} 3. Bc4 {[%clk 0:03:00]}  e6 {[%clk 0:02:58]} 4. O-O {[%clk 0:03:00]}  Nf6 {[%clk 0:02:57]} 5. Re1 {[%clk 0:03:00]}  Nc6 {[%clk 0:02:56]} 6. c3 {[%clk 0:03:01]}  Be7 {[%clk 0:02:52]} 7. d4 {[%clk 0:03:01]}  cxd4 {[%clk 0:02:51]} 8. cxd4 {[%clk 0:03:02]}  d5 {[%clk 0:02:51]} 9. exd5 {[%clk 0:03:03]}  exd5 {[%clk 0:02:51]} 10. Bd3 {[%clk 0:03:02]}  O-O {[%clk 0:02:49]} 11. h3 {[%clk 0:03:02]}  Bb4 {[%clk 0:02:46]} 12. Nc3 {[%clk 0:03:01]}  Re8 {[%clk 0:02:45]} 13. Bg5 {[%clk 0:03:01]}  Rxe1+ {[%clk 0:02:42]} 14. Qxe1 {[%clk 0:03:02]}  Be6 {[%clk 0:02:39]} 15. Qe3 {[%clk 0:02:54]}  Be7 {[%clk 0:02:33]} 16. Re1 {[%clk 0:02:48]}  Qb6 {[%clk 0:02:27]} 17. b3 {[%clk 0:02:35]}  Qa5 {[%clk 0:02:25]} 18. Bb1 {[%clk 0:02:25]}  Rc8 {[%clk 0:02:19]} 19. Ne2 {[%clk 0:02:19]}  Nb4 {[%clk 0:01:54]} 20. Nf4 {[%clk 0:02:17]}  Rc6 {[%clk 0:01:46]} 21. Ne5 {[%clk 0:02:15]}  Ra6 {[%clk 0:01:31]} 22. Nxf7 {[%clk 0:02:06]}  Kxf7 {[%clk 0:01:14]} 23. Nxe6 {[%clk 0:02:04]}  Nxa2 {[%clk 0:01:05]} 24. Bxf6 {[%clk 0:01:54]}  Bxf6 {[%clk 0:01:04]} 25. Ng5+ {[%clk 0:01:50]}  Bxg5 {[%clk 0:01:00]} 26. Qe8+ {[%clk 0:01:49]}  Kf6 {[%clk 0:01:00]} 27. Qf8# {[%clk 0:01:50]} 1-0


[Site "https://www.chess.com"]